Cogmind - Beta 15 @@@ ROGUE MODE // 2025.05.20 @ 22:13:16 Player: 3.14 Result: Destroyed by Y-45 Defender with Beam Rifle Performance ------------- Evolutions (0) 0 Regions Visited (3) 600 Robots Destroyed (19) 95 Value Destroyed (442) 442 Prototype IDs (11) 220 Alien Tech Used (0) 0 Bonus (0) 0 TOTAL SCORE: 1357 Bonus ------- None Cogmind --------- Core Integrity 0/250 Matter 296/300 Energy 77/100 System Corruption 0% Temperature Cool (9) Movement Treading (240) Ox1 Location -9/Recycling Parts ------- > --- POWER (1) -------- (None) > --- PROPULSION (2) --- Light Treads > --- UTILITY (2) ------ Large Storage Unit > --- WEAPON (2) ------- Heavy EM Pulse Gun Assault Rifle > --- INVENTORY (15) --- SUBCON Basin (Full) Peak State ------------ > --- POWER ------------ Improved Ion Engine > --- PROPULSION ------- Light Treads Light Treads > --- UTILITY ---------- Heat Sink Large Storage Unit > --- WEAPON ----------- Beam Cannon Subdweller Machine Gun > --- INVENTORY -------- SUBCON Basin [Rating: 27] Favorites ----------- Power Improved Ion Engine Engine Improved Ion Engine Propulsion Light Treads Treads Light Treads Leg Improved Aluminum Leg Utility Large Storage Unit Device Heat Sink Storage Large Storage Unit Processor Targeting Computer Protection Weapon Shielding Weapon Light Assault Rifle Energy Gun Small Laser Energy Cannon Beam Cannon Ballistic Gun Light Assault Rifle Launcher Rocket Launcher Impact Weapon Makeshift Hammer Slashing Weapon Makeshift Sword Build | -11 -10 -10 -9 ------- Run | Yrd Mat Sub Rec Slots Evolved . | . . . . Power . | . . . . Propulsion . | . . . . Utility . | . . . . Weapon . | . . . . Parts Attached 29 | . 13 13 3 Power 3 | . 2 1 . Engine 3 | . 2 1 . Core . | . . . . Reactor . | . . . . Propulsion 8 | . 3 5 . Treads 5 | . . 5 . Leg 3 | . 3 . . Wheel . | . . . . Hover . | . . . . Flight . | . . . . Utility 5 | . 3 1 1 Device 1 | . . 1 . Storage 1 | . 1 . . Processor 2 | . 2 . . Hackware . | . . . . Protection 1 | . . . 1 Artifact . | . . . . Weapon 13 | . 5 6 2 Energy Gun 2 | . 1 . 1 Energy Cannon 2 | . 1 1 . Ballistic Gun 6 | . 3 2 1 Ballistic Cannon . | . . . . Launcher 1 | . . 1 . Special Weapon . | . . . . Impact Weapon 1 | . . 1 . Slashing Weapon 1 | . . 1 . Piercing Weapon . | . . . . Special Melee Weapon . | . . . . Unidentified Prototypes . | . . . . Parts Lost 7 | . 1 5 1 Power 2 | . . 2 . Propulsion 2 | . 1 1 . Utility 2 | . . 1 1 Weapon 1 | . . 1 . Highest Loss Streak 4 | . 1 4 1 To Critical Strikes . | . . . . Average Backups 9 | . 11 9 . Power . | . 1 . . Propulsion 3 | . 5 1 . Utility . | . . . . Weapon 4 | . 5 6 . Tool/Special . | . . . . Unused Backups 12 | . 4 8 . Power 1 | . 1 . . Propulsion 2 | . 1 1 . Utility 2 | . 2 . . Weapon 7 | . . 7 . Tool/Special . | . . . . Average Slot Usage (%) 94 | . 99 99 63 Engine 12 | . 14 13 . Treads 13 | . . 26 14 Leg 12 | . 27 1 . Device 1 | . . 4 . Storage 14 | . 14 14 14 Processor 10 | . 13 9 . Protection 1 | . . . 10 Energy Gun 4 | . 6 . 10 Energy Cannon 6 | . 5 9 . Ballistic Gun 14 | . 15 13 14 Peak Build Rating 27 | . 12 27 24 Average Rating 14 | . 11 16 23 On Entrance 11 | 6 6 11 22 Naked Turns . | . . . . Heaviest Build 35 | 13 31 35 26 Greatest Support 40 | 20 26 40 20 Greatest Overweight (x) 1 | . 1 1 1 Average Overweight (x) . | . . . 1 Largest Inventory Capacity 15 | . 15 15 15 Average Capacity 14 | . 12 15 15 Most Carried 15 | . 15 15 15 Average Carried 13 | . 11 14 15 Final Capacity 15 | 8 15 15 15 Final Carried 15 | 6 15 15 15 Class Distribution -------------------- 100% | Mutant Dominant Class ---------------- Mutant | -10/Materials Mutant | -10/Subcaves Mutant | -9/Recycling Resources | -11 -10 -10 -9 ----------- Run | Yrd Mat Sub Rec Matter Collected 649 | 200 166 236 47 Remotely . | . . . . Salvage Created 584 | . 433 151 . Parts 40 | . 25 15 . Haulers Intercepted 2 | . 2 . . Recyclers Shooed 1 | . 1 . . Parts Field Recycled . | . . . . Retrieved Matter . | . . . . Parts Self-Destructed 9 | . . 9 . Prevented . | . . . . Kills | -11 -10 -10 -9 ------- Run | Yrd Mat Sub Rec Combat Hostiles Destroyed 13 | . 7 6 . Guns 9 | . 7 2 . Cannons 2 | . . 2 . AOE 2 | . . 2 . Classes Destroyed 9 | . 7 2 . Hauler 2 | . 2 . . Recycler 1 | . 1 . . Mechanic 1 | . 1 . . Operator 1 | . 1 . . Watcher 1 | . 1 . . Swarmer 5 | . 3 2 . Grunt 4 | . 4 . . Sentry 1 | . . 1 . Subdweller 3 | . . 3 . Best Kill Streak 11 | . 11 2 . Combat Bots Only 5 | . 5 2 . Max Kills in Single Turn 3 | . 3 1 . Gunslinging . | . . . . Exploded 1 | . . 1 . Melee . | . . . . Uniques/NPCs Destroyed . | . . . . Combat | -11 -10 -10 -9 -------- Run | Yrd Mat Sub Rec Hostile Shots Fired 138 | . 29 104 5 Missed 23 | . 6 17 . Hits 115 | . 23 87 5 Projectile 115 | . 23 87 5 AOE 5 | . . 5 . Critical Strikes 1 | . . 1 . Damage Taken 1489 | . 330 1085 74 Core 254 | . 43 197 14 Absorbed by Shields . | . . . . Redirected to Shielding 17 | . . . 17 Regen/Repaired (Parts) 41 | . 41 . . Core Remaining (%) 100 | 100 . . . Volleys Fired 53 | . 28 22 3 Largest 2 | . 2 2 2 Hottest 90 | . 90 90 65 Shots Fired 96 | . 55 35 6 Gun 71 | . 52 13 6 Cannon 19 | . 3 16 . Launcher 6 | . . 6 . Special . | . . . . Kinetic 46 | . 30 13 3 Thermal 41 | . 25 16 . Explosive 6 | . . 6 . Electromagnetic 3 | . . . 3 Robot Hit Streak 11 | . 8 11 4 Robot Miss Streak 4 | . 3 4 1 Penetration Max . | . . . . Secondary Targets 2 | . 2 . . Max Gunslinging Chain 1 | . 1 . . Shots Hit Robots 58 | . 33 20 5 Core Hits 29 | . 20 7 2 Critical Kills . | . . . . Critical Parts Destroyed . | . . . . Critical Strikes 3 | . 2 . 1 Burn 2 | . 2 . . Corrupt 1 | . . . 1 Melee Attacks 4 | . . 4 . Impact 3 | . . 3 . Slashing 1 | . . 1 . Piercing . | . . . . Sneak Attacks . | . . . . Combat Hostiles . | . . . . Follow-up Attacks . | . . . . Damage Inflicted 1338 | . 720 542 76 Guns 537 | . 364 108 65 Cannons 156 | . 18 138 . Explosions 634 | . 338 296 . Melee . | . . . . Ramming 11 | . . . 11 Kinetic 367 | . 221 108 38 Thermal 637 | . 499 138 . Explosive 296 | . . 296 . Electromagnetic 27 | . . . 27 Impact . | . . . . Slashing . | . . . . Piercing . | . . . . Highest Corruption . | . . . . Average Corruption . | . . . . Corruption Purged . | . . . . Corruption Blocked . | . . . . Overload Shots . | . . . . Overflow Damage 136 | . 136 . . Projectiles . | . . . . Explosions 136 | . 136 . . Melee . | . . . . Knockbacks . | . . . . Impact . | . . . . Kinetic . | . . . . Secondary . | . . . . Self-Inflicted Damage 85 | . 85 . . Shots 1 | . 1 . . Rammed 3 | . . . 3 Targets Rammed 5 | . 2 . 3 Kicked 2 | . 2 . . Crushed . | . . . . Highest Temperature 221 | . 221 8 5 Average Temperature 63 | . 71 2 3 Received Heat Transfer 312 | . 78 207 27 Effects 1 | . 1 . . Energy Bleed 1 | . 1 . . Siege Activations . | . . . . Martial Activations . | . . . . Shielding Activations . | . . . . Robots Disrupted . | . . . . Combat Hostiles . | . . . . Robots Corrupted . | . . . . Combat Hostiles . | . . . . Parts Fried . | . . . . Impact Corruptions . | . . . . Robots Melted . | . . . . Combat Hostiles . | . . . . Parts Melted 1 | . 1 . . Heat Transferred 1065 | . 769 296 . Parts Sabotaged . | . . . . Parts Stolen . | . . . . Parts Stripped . | . . . . Power Chain Reactions . | . . . . Alert | -11 -10 -10 -9 ------- Run | Yrd Mat Sub Rec Maximum Alert Level . | . . . . Low Security (%) 100 | . 100 . 100 Level 1 . | . . . . Level 2 . | . . . . Level 3 . | . . . . Level 4 . | . . . . Level 5 . | . . . . High Security . | . . . . Max Security . | . . . . Peak Influence 177 | . 177 . 33 Initial 33 | . . . 33 Average 23 | . 29 . 3 Influence Increases 413 | . 271 135 7 Destroy 0b10 Robot/C 200 | . 140 60 . Destroy 0b10 Robot/NC 30 | . 30 . . Destroy Leader 36 | . 36 . . Successful Hack 37 | . 30 . 7 Disable Machine 15 | . 15 . . Destroy Structure 5 | . 5 . . Lose Combat Pursuer 90 | . 15 75 . Influence Decreases 413 | . 271 64 78 Entered New Map 38 | . . . 38 Time Decay 231 | . 167 24 40 Lost Part 50 | . 10 40 . Purge Threat 94 | . 94 . . Squads Dispatched . | . . . . Investigation . | . . . . Extermination . | . . . . Reinforcement . | . . . . Assault . | . . . . Garrison . | . . . . Intercept . | . . . . Searches Triggered . | . . . . Construction Impeded . | . . . . Haulers Reinforced . | . . . . Active Scanning Responses . | . . . . Cargo Convoy Interrupts . | . . . . Stealth | -11 -10 -10 -9 --------- Run | Yrd Mat Sub Rec Distress Signals 3 | . 2 . 1 Communications Jammed . | . . . . Distress Signals . | . . . . Times Spotted 32 | . 20 11 1 Peak Tracking Total 7 | . 7 6 1 Tactical Retreats 3 | . 1 2 . Traps | -11 -10 -10 -9 ------- Run | Yrd Mat Sub Rec Traps Triggered 2 | . . 2 . Indirectly . | . . . . Trap Hack Attempts . | . . . . Triggered . | . . . . Disarmed . | . . . . Reprogrammed . | . . . . Reused . | . . . . Traps Extracted . | . . . . Installed . | . . . . Triggered . | . . . . Machines | -11 -10 -10 -9 ---------- Run | Yrd Mat Sub Rec Machines Disabled 2 | . 1 1 . Max in Single Turn 1 | . 1 1 . Machines Repaired . | . . . . Machines Dismantled . | . . . . Machines Sabotaged . | . . . . Overloaded Fab Kills . | . . . . Hacking | -11 -10 -10 -9 --------- Run | Yrd Mat Sub Rec Machines Accessed 14 | . 7 4 3 Terminals 9 | . 6 . 3 Fabricators . | . . . . Repair Stations 1 | . 1 . . Recycling Units . | . . . . Scanalyzers . | . . . . Garrison Access . | . . . . Total Hacks 37 | . 22 8 7 Successful 23 | . 14 8 1 Failed 14 | . 8 . 6 Catastrophic 1 | . . . 1 Database Lockouts . | . . . . Manual 18 | . 18 . . Terminals 26 | . 19 . 7 Fabricators . | . . . . Repair Stations 3 | . 3 . . Recycling Units . | . . . . Scanalyzers . | . . . . Garrison Access . | . . . . Terminal Hacks 14 | . 5 8 1 Record 5 | . . 5 . Part Schematic 3 | . 2 . 1 Open Door 1 | . . 1 . Terminal Index 1 | . 1 . . Unreport Threat 1 | . 1 . . Locate Traps 1 | . 1 . . Proto ID Catalog 1 | . . 1 . Release Object 1 | . . 1 . Fabricator Hacks . | . . . . Repair Station Hacks 2 | . 2 . . Scan Component 1 | . 1 . . Repair 1 | . 1 . . Recycling Unit Hacks . | . . . . Scanalyzer . | . . . . Garrison Access Hacks . | . . . . Unauthorized Hacks 7 | . 7 . . Terminals 7 | . 7 . . Assimilate 1 | . 1 . . Operators 1 | . 1 . . Skim 5 | . 5 . . Fabricators . | . . . . Repair Stations . | . . . . Recycling Units . | . . . . Scanalyzers . | . . . . Garrison Access . | . . . . Data Cores Recovered . | . . . . Used . | . . . . Hacking Detections 9 | . 6 . 3 Full Trace Events 1 | . . . 1 Feedback Events . | . . . . Feedback Blocked . | . . . . Robot Schematics Acquired . | . . . . Robots Built . | . . . . Authchips . | . . . . Time . | . . . . Total Robot Build Rating . | . . . . Part Schematics Acquired 2 | . 1 . 1 Parts Built . | . . . . Authchips . | . . . . Time . | . . . . Total Part Build Rating . | . . . . Parts Repaired 1 | . 1 . . Time 26 | . 26 . . Parts Recycled . | . . . . Recycled Matter . | . . . . Retrieved Matter . | . . . . Retrieved Components . | . . . . Parts Scanalyzed . | . . . . Part Schematics Acquired . | . . . . Parts Damaged . | . . . . Bothacking | -11 -10 -10 -9 ------------ Run | Yrd Mat Sub Rec Used RIF Installer . | . . . . Robots Hacked . | . . . . Non-combat . | . . . . Combat . | . . . . Robot Hacks Applied . | . . . . Relay Couplers Released . | . . . . Fabnet Peak Effective % . | . . . . Robots Rewired . | . . . . Allies Hacked . | . . . . Hacks Repelled . | . . . . Allies | -11 -10 -10 -9 -------- Run | Yrd Mat Sub Rec Total Allies . | . . . . Largest Group . | . . . . Highest-Rated Group . | . . . . Highest-Rated Ally . | . . . . Total Orders . | . . . . Ally Attacks . | . . . . Total Damage . | . . . . Kills . | . . . . Allies Corrupted . | . . . . Allies Melted . | . . . . Intel | -11 -10 -10 -9 ------- Run | Yrd Mat Sub Rec Active Infowar (turns) 1035 | . 1035 . . Optics 1035 | . 1035 . . Robot Analysis Total . | . . . . Derelict Logs Recovered . | . . . . Drone Launches . | . . . . Drone Recoveries . | . . . . Exploration | -11 -10 -10 -9 ------------- Run | Yrd Mat Sub Rec Turns Passed 2908 | . 1262 1259 387 Spaces Moved 1530 | 1 662 715 152 Core . | . . . . Treads 850 | . . 698 152 Legs 680 | 1 662 17 . Wheels . | . . . . Hover . | . . . . Flight . | . . . . Fastest Speed 120 | 120 120 160 240 Average Speed 170 | 120 164 161 240 Slowest Speed 240 | 120 190 240 240 Overloaded Moves . | . . . . Propulsion Burnouts . | . . . . Robots Hopped . | . . . . Potential Cave-ins . | . . . . Cave-ins Triggered . | . . . . Exploration Rate (%) 42 | 2 96 41 29 Regions Visited 3 Branch Regions 2 Pre-discovered Areas 2 | . 1 1 . Known Exits Taken 1 | . 1 . . Unknown Exits Taken 2 | 1 . 1 . Scrap Searched 3 | . . 3 . Spaces Dug . | . . . . Terrain Destroyed 40 | . 6 34 . Melee . | . . . . Projectile . | . . . . AOE 40 | . 6 34 . Terrain Rammed . | . . . . Walls Destroyed . | . . . . Machines Disabled . | . . . . Actions | -11 -10 -10 -9 --------- Run | Yrd Mat Sub Rec Total 1738 | . 789 785 164 Wait 58 | . 52 4 2 Move 1527 | . 661 714 152 Hop . | . . . . Pick Up 23 | . 19 4 . Fast Attach 7 | . 3 1 3 Attach 9 | . 5 4 . Detach . | . . . . Swap 18 | . 5 13 . Drop 34 | . 14 19 1 Fire 53 | . 28 22 3 Melee 4 | . . 4 . Ram . | . . . . Kick 2 | . 2 . . Crush 3 | . . . 3 Escape Stasis . | . . . . Rewire . | . . . . Trap . | . . . . Miscellaneous . | . . . . Route ------- -11/Scrapyard -10/Materials (discovered 5 exits: *Mat x3 / *Min / *Sub) -10/Subcaves (discovered 2 exits: [*Mat] / *Rec) -9/Recycling History --------- Turn | Location | Event 1 | -11/Scrapyard | Discovered new exit (range 0) 1 | -11/Scrapyard | Entered Materials 312 | -10/Materials | Build established: Mutant 324 | -10/Materials | Discovered new exit (range 10) 391 | -10/Materials | Learned location of Subcaves (-10) 426 | -10/Materials | Learned location of 2 exits from Mines 450 | -10/Materials | Identified exit to Materials 466 | -10/Materials | Identified exit to Subcaves 466 | -10/Materials | Identified exit to Mines 466 | -10/Materials | Learned location of 1 exit from Materials 467 | -10/Materials | Loaded intel: 21 trap records 493 | -10/Materials | Learned 2 Mines zone layouts 882 | -10/Materials | Repaired Lgt. Treads 1263 | -10/Materials | Entered Subcaves 1288 | -10/Subcaves | Discovered new exit (range 10) 1326 | -10/Subcaves | Visited Clippyterm 1331 | -10/Subcaves | Learned location of Deep Caves (-6) 1569 | -10/Subcaves | Visited 4L-MR0's lab 1596 | -10/Subcaves | Found Arachnoskeleton 1688 | -10/Subcaves | Disturbed a concealed Subdweller 1693 | -10/Subcaves | Core integrity fell below 50% 1736 | -10/Subcaves | Shifting Twisted Machinery released Piercing Trap 1738 | -10/Subcaves | Shifting Twisted Machinery released Mak. Sword 2155 | -10/Subcaves | Found SUBCON Basin 2509 | -10/Subcaves | Discovered new exit (range 8) 2513 | -10/Subcaves | Core integrity fell below 20% 2522 | -10/Subcaves | Entered Recycling 2549 | -9/Recycling | Lost 4 parts (1p1n1u1w) 2909 | -9/Recycling | Destroyed by Y-45 Defender with Beam Rifle Last Messages --------------- 02590_ Acquired Assault Rifle. 02591_ Dropped Broken Sub. Machine Gun. 02601_ Acquired Hvy. EM Pulse Gun. 02605_ Acquired 37 matter. 02614_ R-06 Scavenger collects Broken Sub. Machine Gun. 02620_ Acquired Weapon Shielding. 02649_ Acquired 10 matter. 02664_ Slammed into R-06 Scavenger. 02810_ Connecting with Terminal... 02810_ Current location identified: Recycling >>Schematic(Med. Treads) Downloading schematic... Med. Treads Rating: 4 Schematic downloaded. 02829_ Connecting with Terminal... 02892_ Slammed into R-06 Scavenger. 02893_ R-06 Scavenger sends out distress signal. 02894_ Slammed into R-06 Scavenger. 02906_ Weapon Shielding destroyed. Map ----- +----------------------------------------------------+ | ?????????????????????????# #?????????????????????? | | ?????????????????????????# #?????????????????????? | | ?????????????????????????# #?????????????????????? | | ?????????????????????????# #?????????????????????? | | ?????????????????????????# #?????????????????????? | | ?????????????????????????# #?????????????????????? | | ?????????????????????????# #?????????????????????? | | ?????????????????????????# #?????????????????????? | | ?????????????????????????# #?????????????????????? | | ?????????????????????????# #?????????????????????? | | ?????????????????????????# #?????????????????????? | | ?????????????????????????# #?????????????????????? | | ?????????????????????????# #?????????????????????? | | ?????????????????????????# #?????????????????????? | | ?????????????????????????# #?????????????????????? | | ?????????????????????????# #?????????????????????? | | ??????????????#####??????# #?????????????????????? | | ??????????????? ?????#+########??????????????? | | ????????????????# ###### % !% #??????????????? | | ????????????????# + #??????????????? | | ????????????????# ## #??????????????? | | ????????????????# ## !=#??????????????? | | ????????????????# ## ! #?############## | | ????????????????### ### ##r % #?# # | | ??????????????????????#%## #?# # | | ??????????????????????# Y@ ! #?# # | | ??????????????????????# # !] #?# # | | ???????????????######## ######+##### # | | ???????????????# # # | | ???????????????# / # | | ???????????????# # # | | ???????????????######+##+######+### # # | | ????????????????# #??# [ # # # | | ??????????????### """"" ##?# * + # # | | ??????????????#"" """"" T#?#! # # # | | ??????????????#"" """"" #### # ######### #### | | ??????????????#"T """"" ""## # #?????????#??? | | ??????????????#"" """"" Y"## | # #????????????? | | ??????????????#"" """"" ""## | =# #????????????? | | ??????????????### """"" #### # #????????????? | | ????????????????# #??# % # #????????????? | | ????????????????###"T"####??# # #????????????? | | ??????????????????#####?????####### #????????????? | | ??????????????????????????????????# #????????????? | | ?????????????????????????????????##+########?????? | | ?????????????????????????????????# #?????? | | ?????????????????????????????????# #?????? | | ?????????????????????????????????# #?????? | | ?????????????????????????????????# #?????? | | ?????????????????????????????????# ##????? | +----------------------------------------------------+ Best States ------------- Heat Dissipation 35 Energy Generation 12 Energy Capacity 265 Matter Stores 300 Matter Capacity 300 Sight Range 18 Terrain Scan Density 10 Weapon Shielding 33 Evasion (%) 55 Targeting Accuracy 5 Recoil Reduction 2 Item Schematics ----------------- Huge Storage Unit | -10/Materials | Hacked Med. Treads | -9/Recycling | Hacked Robot Schematics ------------------ None Fabricated ------------ Nothing Repaired ---------- Lgt. Treads | 70% | -10/Materials Alien Tech Used ----------------- None Achievements -------------- None Challenges ------------ None Game ------ Seed BorePrecisionMeganuke Manual? 0 Play Time 00:12:05 Cumulative 913.6 hours Start 2025.05.20 @ 22:01:51 End 2025.05.20 @ 22:13:16 Sessions 1 Manual Loads 0 Difficulty Rogue Special Mode None Game No. 1495 Rogue 1495 Adventurer 0 Explorer 0 Win Type - Total 89 Types 54/1/15/14/4/0/0/1/0/0 Lore% 87 Gallery% 82 Achievement% 85 Wizard Run 0 Options --------- Layout 0 ASCII 1 Keyboard 0 Movement Numpad Keybinds 1 Fullscreen 2 Font 18/SmallcapsGlow Map View 76x50 Zoom Use 0% Tactical HUD 1 Map Filters NONE Filters NONE Steam 1 RUN: 1e12a11d-3895-4003-9af1-3f0654ea79c3